bitfinex-derivatives/quotes_BTCF0:USTF0_20260111
["timestamp","ask_amount","ask_price","bid_price","bid_amount"]
[1768165710969,0.42388,90693.0,90679.0,0.011043]
[1768165711262,0.09388,90700.0,90687.0,0.011042]
[1768165711468,0.24605112,90700.0,90687.0,0.011042]
[1768165712258,0.24605112,90700.0,90684.0,0.011042]
[1768165712966,0.24605112,90700.0,90683.0,0.011042]
[1768165713166,0.24605112,90700.0,90685.0,0.011042]
[1768165713468,0.10492,90700.0,90683.0,0.01433492]
[1768165713662,0.10492,90700.0,90682.0,0.011042]
[1768165713858,0.10492,90700.0,90684.0,0.011042]
[1768165714067,0.10492,90700.0,90681.0,0.01386663]
[1768165714068,0.01333721,90697.0,90681.0,0.01386663]
[1768165714273,0.011041,90695.0,90677.0,0.011043]
[1768165714770,0.01333721,90695.0,90679.0,0.011043]
[1768165715164,0.00229621,90695.0,90677.0,0.01405]
[1768165715472,0.00229621,90695.0,90674.0,0.00954116]
[1768165717464,0.00229621,90695.0,90680.0,0.011043]
[1768165718372,0.011041,90698.0,90680.0,0.011043]
[1768165718675,0.011041,90698.0,90682.0,0.011042]
[1768165722476,0.09617169,90700.0,90679.0,0.00954116]
[1768165722875,0.011041,90699.0,90684.0,0.011042]
[1768165727385,0.09617169,90700.0,90676.0,0.09281989]
[1768165727585,0.011041,90699.0,90676.0,0.09281989]
[1768165728494,0.011041,90699.0,90683.0,0.011042]
[1768165729192,0.011041,90696.0,90674.0,0.01437018]
[1768165729495,0.011041,90695.0,90680.0,0.011043]
[1768165730289,0.011041,90693.0,90678.0,0.011043]
[1768165730690,0.011041,90693.0,90677.0,0.02058416]
[1768165731487,0.011042,90689.0,90674.0,0.011043]
[1768165731689,0.011042,90689.0,90674.0,0.01425267]
[1768165731898,0.011042,90689.0,90672.0,0.00954116]
[1768165732381,0.00905395,90685.0,90662.0,0.011045]
[1768165732587,0.011043,90681.0,90664.0,0.011045]
[1768165732790,0.011043,90679.0,90663.0,0.09384]
[1768165732990,0.00905395,90678.0,90655.0,0.00954116]
[1768165733697,0.00905395,90678.0,90659.0,0.011045]
[1768165733898,0.00905395,90677.0,90661.0,0.011045]
[1768165734396,0.09384,90679.0,90663.0,0.011045]
[1768165734595,0.104883,90679.0,90660.0,0.011045]
[1768165734996,0.104883,90679.0,90660.0,0.02058616]
[1768165735203,0.09384,90679.0,90662.0,0.011045]
[1768165735497,0.09384,90679.0,90663.0,0.10381989]
[1768165735890,0.09384,90679.0,90669.0,0.00954116]
[1768165737896,0.011042,90685.0,90669.0,0.00954116]
[1768165739101,0.09384,90686.0,90669.0,0.00954116]
[1768165739491,0.09384,90686.0,90664.0,0.10381989]
[1768165739801,0.011042,90684.0,90664.0,0.10381989]
[1768165740005,0.011042,90684.0,90666.0,0.011044]
[1768165741805,0.011042,90684.0,90668.0,0.011044]
[1768165742005,0.011042,90682.0,90666.0,0.011044]
[1768165742304,0.011042,90682.0,90664.0,0.10381989]
[1768165742505,0.011043,90680.0,90664.0,0.10381989]
[1768165742801,0.011043,90680.0,90664.0,0.11486489]
[1768165742998,0.011043,90680.0,90666.0,0.011044]
[1768165744408,0.011043,90678.0,90664.0,0.11486489]
[1768165744605,0.10379729,90686.0,90666.0,0.011044]
[1768165744901,0.011043,90682.0,90666.0,0.011044]
[1768165746206,0.011043,90682.0,90668.0,0.011044]
[1768165746502,0.00995729,90685.0,90664.0,0.11486489]
[1768165746710,0.00995729,90685.0,90666.0,0.011044]
[1768165746908,0.011043,90678.0,90666.0,0.011044]
[1768165747901,0.00995729,90685.0,90664.0,0.10381989]
[1768165748206,0.011043,90677.0,90664.0,0.10381989]
[1768165748906,0.011043,90675.0,90664.0,0.10381989]
[1768165749604,0.011042,90684.0,90664.0,0.10381989]
[1768165749807,0.011044,90670.0,90659.0,0.00992508]
[1768165750499,0.011044,90670.0,90659.0,0.10846856]
[1768165751308,0.011044,90669.0,90659.0,0.10846856]
[1768165752611,0.011044,90669.0,90660.0,0.00992508]
[1768165753318,0.011044,90671.0,90661.0,0.10846856]
[1768165753502,0.011044,90671.0,90662.0,0.00992508]
[1768165757109,0.011043,90678.0,90662.0,0.00992508]
[1768165757901,0.00919838,90682.0,90658.0,0.09854348]
[1768165758103,0.011044,90671.0,90657.0,0.00992508]
[1768165758715,0.011044,90673.0,90657.0,0.00992508]
[1768165758903,0.011044,90673.0,90658.0,0.011045]
[1768165759607,0.011044,90671.0,90658.0,0.011045]
[1768165762512,0.011044,90671.0,90657.0,0.00992508]
[1768165762513,0.011044,90671.0,90659.0,0.011045]
[1768165762709,0.00919838,90680.0,90658.0,0.00992508]
[1768165763215,0.00919838,90680.0,90661.0,0.011045]
[1768165763715,0.011044,90672.0,90661.0,0.011045]
[1768165763914,0.011044,90672.0,90658.0,0.02097008]
[1768165764415,0.011044,90670.0,90658.0,0.00992508]
[1768165766619,0.011044,90667.0,90658.0,0.00992508]
[1768165766808,0.011045,90665.0,90658.0,0.00992508]
[1768165767208,0.011043,90676.0,90658.0,0.00992508]
[1768165768417,0.011043,90675.0,90658.0,0.00992508]
[1768165768620,0.011043,90676.0,90658.0,0.00992508]
[1768165768820,0.011044,90666.0,90658.0,0.00992508]
[1768165770921,0.011044,90667.0,90658.0,0.00992508]
[1768165771120,0.09384,90677.0,90662.0,0.11951356]
[1768165771424,0.09384,90677.0,90664.0,0.00992508]
[1768165772314,0.011044,90674.0,90664.0,0.00992508]
[1768165777426,0.011044,90673.0,90664.0,0.00992508]
[1768165777728,0.09384,90677.0,90664.0,0.00992508]
[1768165778026,0.011044,90672.0,90664.0,0.00992508]
[1768165779026,0.011043,90676.0,90664.0,0.00992508]
[1768165780317,0.011043,90675.0,90664.0,0.00992508]
[1768165786027,0.15209192,90674.0,90664.0,0.00992508]
[1768165786437,0.15209192,90674.0,90660.0,0.09374168]
[1768165786730,0.15209192,90670.0,90660.0,0.09374168]
[1768165787034,0.15209192,90670.0,90660.0,0.10369271]
[1768165787619,0.15209192,90670.0,90660.0,0.09264771]
[1768165788617,0.15209192,90670.0,90660.0,0.00995103]
[1768165790330,0.15209192,90670.0,90657.0,0.011045]
[1768165791734,0.15209192,90670.0,90657.0,0.10369271]
[1768165793028,0.15209192,90670.0,90658.0,0.011045]
[1768165793329,0.15209192,90670.0,90658.0,0.10369271]
[1768165797534,0.15209192,90670.0,90659.0,0.011045]
[1768165801032,0.15209192,90670.0,90658.0,0.00995103]
[1768165801223,0.15209192,90670.0,90656.0,0.011046]
[1768165801428,0.15209192,90670.0,90657.0,0.011045]
[1768165802044,0.15209192,90670.0,90659.0,0.011045]
[1768165809151,0.15209192,90670.0,90657.0,0.011045]
[1768165813942,0.15209192,90670.0,90655.0,0.02389852]
[1768165816146,0.15209192,90670.0,90655.0,0.03494452]
[1768165817945,0.15209192,90670.0,90656.0,0.011046]
[1768165818648,0.15209192,90670.0,90659.0,0.011045]
[1768165820644,0.15209192,90670.0,90656.0,0.011046]
[1768165820838,0.15209192,90670.0,90658.0,0.011045]
[1768165823042,0.15209192,90670.0,90655.0,0.01394749]
[1768165823344,0.15209192,90670.0,90654.0,0.104886]
[1768165824151,0.15209192,90670.0,90656.0,0.011046]
[1768165824353,0.15209192,90670.0,90654.0,0.09384]
[1768165824742,0.15209192,90670.0,90655.0,0.011046]
[1768165826359,0.15209192,90670.0,90654.0,0.104886]
[1768165826955,0.16313592,90670.0,90654.0,0.104886]
[1768165828058,0.011044,90673.0,90656.0,0.011046]
[1768165828248,0.16313592,90670.0,90654.0,0.104886]
[1768165828855,0.15209192,90670.0,90654.0,0.09384]
[1768165829054,0.15209192,90670.0,90658.0,0.011045]
[1768165830555,0.02048434,90676.0,90659.0,0.011045]
[1768165830742,0.15209192,90670.0,90658.0,0.011045]
[1768165830943,0.15209192,90670.0,90659.0,0.011045]
[1768165831754,0.15209192,90670.0,90660.0,0.011045]
[1768165831947,0.15209192,90670.0,90654.0,0.10666123]
[1768165833158,0.15209192,90670.0,90663.0,0.011045]
[1768165833348,0.15209192,90673.0,90663.0,0.011045]
[1768165833748,0.15209192,90673.0,90662.0,0.011045]
[1768165835350,0.10328134,90676.0,90662.0,0.011045]
[1768165838661,0.10328134,90676.0,90663.0,0.011045]
[1768165840963,0.10328134,90676.0,90654.0,0.18530176]
[1768165841161,0.10328134,90676.0,90661.0,0.011045]
[1768165844060,0.10328134,90676.0,90654.0,0.18530176]
[1768165844261,0.10328134,90676.0,90662.0,0.011045]
[1768165844863,0.10328134,90676.0,90654.0,0.18530176]
[1768165845262,0.10328134,90676.0,90660.0,0.011045]
[1768165848367,0.10328134,90676.0,90654.0,0.18530176]
[1768165849556,0.10328134,90676.0,90662.0,0.011045]
[1768165850366,0.10328134,90676.0,90664.0,0.011045]
[1768165853961,0.10328134,90676.0,90665.0,0.011044]
[1768165856167,0.10328134,90676.0,90654.0,0.18530176]
[1768165856168,0.10328134,90676.0,90658.0,0.011045]
[1768165856365,0.10328134,90676.0,90657.0,0.022092]
[1768165856571,0.10328134,90676.0,90665.0,0.011045]
[1768165858267,0.10328134,90676.0,90657.0,0.011045]
[1768165858468,0.10328134,90676.0,90664.0,0.011045]
[1768165861574,0.10328134,90676.0,90655.0,0.07864053]
[1768165862574,0.10328134,90676.0,90661.0,0.011045]
[1768165866074,0.10328134,90676.0,90655.0,0.07864053]
[1768165867381,0.10328134,90676.0,90662.0,0.011045]
[1768165870582,0.10328134,90676.0,90663.0,0.011045]
[1768165872181,0.0097559,90675.0,90655.0,0.07864053]
[1768165872383,0.0097559,90675.0,90662.0,0.011045]
[1768165872582,0.0097559,90675.0,90655.0,0.05082017]
[1768165872881,0.0097559,90675.0,90655.0,0.0365488]
[1768165873077,0.0097559,90675.0,90655.0,0.02703768]
[1768165873278,0.0097559,90675.0,90655.0,0.01761683]
[1768165873576,0.0097559,90675.0,90654.0,0.01360848]
[1768165873774,0.0097559,90675.0,90654.0,0.00860781]
[1768165873975,0.0097559,90675.0,90662.0,0.00604779]
[1768165874173,0.0097559,90675.0,90653.0,0.09384]
[1768165874174,0.0097559,90675.0,90654.0,0.00817048]
[1768165874369,0.0097559,90675.0,90662.0,0.011045]
[1768165874673,0.0097559,90675.0,90653.0,0.04982159]
[1768165874867,0.0097559,90675.0,90653.0,0.04000217]
[1768165875073,0.0097559,90675.0,90653.0,0.02535105]
[1768165875278,0.0097559,90675.0,90662.0,0.0061633]
[1768165875474,0.0097559,90675.0,90653.0,0.02046868]
[1768165875666,0.0097559,90675.0,90661.0,0.011045]
[1768165875873,0.0097559,90675.0,90654.0,0.05969328]
[1768165876179,0.0097559,90675.0,90654.0,0.04548932]
[1768165876575,0.0097559,90675.0,90654.0,0.04835825]
[1768165876777,0.0097559,90675.0,90654.0,0.04371916]
[1768165876978,0.0097559,90675.0,90654.0,0.034443]
[1768165877183,0.01116182,90675.0,90654.0,0.02030293]
[1768165877376,0.01090893,90674.0,90662.0,0.011045]
[1768165877571,0.01090893,90674.0,90654.0,0.02030293]
[1768165877771,0.01090893,90674.0,90654.0,0.01509912]
[1768165877972,0.01090893,90674.0,90654.0,0.01023168]
[1768165878178,0.01090893,90674.0,90664.0,0.0013139]
[1768165878377,0.01090893,90674.0,90664.0,0.011045]
[1768165878569,0.01090893,90674.0,90654.0,0.00054424]
[1768165878769,0.01090893,90674.0,90663.0,0.00622436]
[1768165878971,0.01090893,90674.0,90654.0,0.00585281]
[1768165879271,0.01090893,90674.0,90654.0,0.011046]
[1768165879475,0.01090893,90674.0,90663.0,0.00623157]
[1768165879672,0.01090893,90674.0,90663.0,0.011045]
[1768165879877,0.01090893,90674.0,90654.0,0.011046]
[1768165880086,0.01090893,90674.0,90663.0,0.00623534]
[1768165880588,0.01090893,90674.0,90664.0,0.011045]
[1768165881789,0.01090893,90674.0,90665.0,0.011044]
[1768165884606,0.01090893,90674.0,90666.0,0.011044]
[1768165885395,0.0097559,90675.0,90666.0,0.011044]
[1768165885892,0.0097559,90675.0,90667.0,0.011044]
[1768165888002,0.09384,90677.0,90668.0,0.011044]
[1768165888995,0.09384,90677.0,90669.0,0.011044]
[1768165890396,0.06988913,90688.0,90666.0,0.07368668]
[1768165890601,0.06988913,90688.0,90677.0,0.011043]
[1768165890792,0.06013323,90686.0,90677.0,0.011043]
[1768165891099,0.09384,90685.0,90678.0,0.011043]
[1768165891505,0.15397323,90685.0,90676.0,0.011043]
[1768165891894,0.06013323,90684.0,90676.0,0.011043]
[1768165893200,0.09384,90690.0,90674.0,0.06465665]
[1768165894496,0.09384,90690.0,90680.0,0.011043]
[1768165895291,0.245888,90690.0,90680.0,0.011043]
[1768165897505,0.245888,90690.0,90677.0,0.011043]
[1768165897709,0.245888,90690.0,90679.0,0.011043]
[1768165899616,0.245888,90690.0,90671.0,0.09685465]
[1768165899909,0.245888,90690.0,90677.0,0.011043]
[1768165900099,0.09384,90690.0,90679.0,0.011043]
[1768165900407,0.245888,90690.0,90681.0,0.011043]
[1768165905620,0.34281395,90690.0,90681.0,0.011043]
[1768165905914,0.34281395,90690.0,90679.0,0.011043]
[1768165906119,0.34281395,90690.0,90680.0,0.011043]
[1768165906618,0.34281395,90690.0,90671.0,0.08489765]
[1768165907716,0.34281395,90690.0,90681.0,0.011043]
[1768165908723,0.35218073,90690.0,90681.0,0.011043]
[1768165909721,0.35218073,90690.0,90679.0,0.011043]
[1768165910320,0.35218073,90690.0,90680.0,0.011043]
[1768165913815,0.35218073,90690.0,90673.0,0.01774886]
[1768165914122,0.10629273,90689.0,90673.0,0.01774886]
[1768165914319,0.10629273,90689.0,90679.0,0.011043]
[1768165915521,0.10629273,90689.0,90680.0,0.011043]
[1768165915712,0.10629273,90689.0,90681.0,0.011043]
[1768165916520,0.10629273,90689.0,90673.0,0.01774886]
[1768165917222,0.10629273,90689.0,90681.0,0.011043]
[1768165917922,0.10629273,90689.0,90673.0,0.01774886]
[1768165920125,0.245888,90690.0,90668.0,0.11975055]
[1768165920126,0.10629273,90687.0,90668.0,0.11975055]
[1768165920512,0.10629273,90687.0,90668.0,0.10870655]
[1768165920724,0.152048,90680.0,90668.0,0.09878162]
[1768165920924,0.152048,90680.0,90666.0,0.011044]
[1768165921124,0.25834073,90680.0,90666.0,0.011044]
[1768165921728,0.25834073,90680.0,90667.0,0.011044]
[1768165922424,0.25834073,90680.0,90667.0,0.02738389]
[1768165923726,0.00936678,90671.0,90659.0,0.09384]
[1768165924027,0.10441465,90671.0,90659.0,0.09384]
[1768165926032,0.10441465,90671.0,90659.0,0.104885]
[1768165927922,0.152048,90670.0,90660.0,0.011045]
[1768165928533,0.152048,90670.0,90660.0,0.02321866]
[1768165935440,0.152048,90670.0,90661.0,0.011045]
[1768165939048,0.152048,90670.0,90660.0,0.01217366]
[1768165939440,0.10365785,90669.0,90660.0,0.01217366]
[1768165939648,0.09157449,90665.0,90654.0,0.09384]
[1768165940537,0.09157449,90665.0,90655.0,0.011046]
[1768165941235,0.00997175,90665.0,90656.0,0.011046]
[1768165942141,0.00997175,90665.0,90652.0,0.011046]
[1768165942331,0.00997175,90665.0,90653.0,0.011046]
[1768165945249,0.00997175,90665.0,90653.0,0.02371847]
[1768165945752,0.152048,90663.0,90653.0,0.01267247]
[1768165945934,0.152048,90663.0,90651.0,0.011046]
[1768165946134,0.0912837,90665.0,90648.0,0.09626698]
[1768165946349,0.08127245,90669.0,90649.0,0.0941841]
[1768165947545,0.08127245,90669.0,90650.0,0.1052301]
[1768165947750,0.08127245,90669.0,90650.0,0.11753418]
[1768165947949,0.10159963,90678.0,90657.0,0.0941841]
[1768165948139,0.09055663,90675.0,90659.0,0.011045]
[1768165948346,0.09055663,90674.0,90659.0,0.011045]
[1768165949353,0.152048,90670.0,90659.0,0.011045]
[1768165949649,0.152048,90670.0,90661.0,0.011045]
[1768165949853,0.09055663,90674.0,90661.0,0.011045]
[1768165950152,0.152048,90671.0,90663.0,0.011045]
[1768165954961,0.09055663,90674.0,90663.0,0.011045]
[1768165955162,0.09022198,90673.0,90663.0,0.011045]
[1768165955661,0.09022198,90673.0,90660.0,0.011045]
[1768165955860,0.09022198,90673.0,90657.0,0.01264882]
[1768165957459,0.09022198,90673.0,90663.0,0.011045]
[1768165959054,0.09022198,90673.0,90660.0,0.011045]
[1768165960278,0.09022198,90673.0,90661.0,0.011045]
[1768165961279,0.09014697,90672.0,90661.0,0.011045]
[1768165962680,0.09014697,90672.0,90662.0,0.011045]
[1768165964981,0.09014697,90672.0,90663.0,0.011045]
[1768165965882,0.09014697,90672.0,90657.0,0.01264882]
[1768165967385,0.09014697,90672.0,90664.0,0.011045]
[1768165967581,0.00926214,90671.0,90664.0,0.011045]
[1768165969980,0.00926214,90671.0,90657.0,0.01264882]
[1768165969981,0.00926214,90671.0,90662.0,0.011045]
[1768165970984,0.00926214,90671.0,90664.0,0.011045]
[1768165973992,0.1740538,90675.0,90657.0,0.011045]
[1768165974292,0.18331594,90675.0,90657.0,0.011045]
[1768165974494,0.08947594,90674.0,90657.0,0.011045]
[1768165975190,0.08947594,90674.0,90666.0,0.011044]
[1768165980198,0.08947594,90674.0,90656.0,0.10666473]
[1768165980401,0.00926214,90673.0,90654.0,0.011046]
[1768165980698,0.00926214,90673.0,90663.0,0.011045]
[1768165981094,0.00926214,90673.0,90664.0,0.011045]
[1768165982502,0.00926214,90673.0,90666.0,0.011044]
[1768165988000,0.00926214,90673.0,90667.0,0.011044]
[1768165989103,0.09384,90675.0,90668.0,0.011044]
[1768165989400,0.09384,90675.0,90658.0,0.011045]
[1768165989401,0.08978886,90678.0,90659.0,0.09945386]
[1768165989591,0.07998868,90681.0,90673.0,0.011043]
[1768165989798,0.09384,90680.0,90673.0,0.011043]
[1768165990406,0.07998868,90681.0,90663.0,0.09945386]
[1768165990611,0.09384,90682.0,90671.0,0.011044]
[1768165991715,0.09384,90682.0,90673.0,0.011044]
[1768165992300,0.09384,90682.0,90663.0,0.09945386]
[1768165992809,0.0894101,90681.0,90669.0,0.011044]
[1768165993113,0.0894101,90681.0,90670.0,0.011044]
[1768165994310,0.0894101,90681.0,90663.0,0.09945386]
[1768165994311,0.0894101,90681.0,90669.0,0.011044]
[1768165995610,0.0894101,90681.0,90670.0,0.011044]
[1768166001116,0.0894101,90681.0,90671.0,0.011044]
[1768166002221,0.0894101,90681.0,90672.0,0.011044]
[1768166003620,0.0894101,90681.0,90673.0,0.011043]
[1768166004412,0.0894101,90681.0,90675.0,0.011043]
[1768166005823,0.0894101,90681.0,90663.0,0.09945386]
[1768166006024,0.09384,90683.0,90669.0,0.011044]
[1768166006922,0.00980018,90686.0,90678.0,0.011043]
[1768166007814,0.00980018,90686.0,90679.0,0.011043]
[1768166008117,0.09384,90689.0,90683.0,0.011042]
[1768166008416,0.08758466,90689.0,90683.0,0.011042]
[1768166010224,0.08758466,90689.0,90669.0,0.11049786]
[1768166010722,0.08758466,90689.0,90681.0,0.011042]
[1768166011023,0.08758466,90689.0,90682.0,0.011042]
[1768166011418,0.08758466,90689.0,90683.0,0.011042]
[1768166011724,0.00980018,90689.0,90683.0,0.011042]
[1768166012223,0.09384,90691.0,90683.0,0.011042]
[1768166012425,0.17188409,90691.0,90683.0,0.011042]
[1768166012926,0.17188409,90691.0,90683.0,0.005042]
[1768166013514,0.07804409,90691.0,90683.0,0.005042]
[1768166014018,0.17188409,90691.0,90683.0,0.005042]
[1768166015327,0.07804409,90691.0,90683.0,0.005042]
[1768166015530,0.17188409,90691.0,90683.0,0.005042]
[1768166016029,0.17188409,90691.0,90686.0,0.011042]
[1768166016323,0.09384,90694.0,90688.0,0.011042]
[1768166019027,0.09384,90694.0,90681.0,0.09727311]
[1768166019227,0.10441735,90707.0,90697.0,0.011041]
[1768166019432,0.10441735,90707.0,90696.0,0.011041]
[1768166019729,0.09384,90707.0,90690.0,0.1520242]
[1768166020032,0.09384,90707.0,90693.0,0.011041]
[1768166020330,0.09384,90707.0,90695.0,0.011041]
[1768166021134,0.09384,90707.0,90693.0,0.011041]
[1768166023530,0.09384,90707.0,90688.0,0.00974841]
[1768166023731,0.09384,90707.0,90690.0,0.1520242]
[1768166024627,0.09384,90707.0,90698.0,0.01104]
[1768166025029,0.09384,90707.0,90690.0,0.16177261]
[1768166025235,0.09384,90707.0,90692.0,0.00974841]
[1768166025735,0.00242538,90708.0,90700.0,0.01104]
[1768166027041,0.00242538,90708.0,90701.0,0.01104]
[1768166027238,0.00242538,90708.0,90702.0,0.01104]
[1768166027544,0.09384,90714.0,90703.0,0.01104]
[1768166027745,0.09384,90714.0,90704.0,0.01104]
[1768166028037,0.09384,90714.0,90706.0,0.01104]
[1768166028445,0.09384,90714.0,90703.0,0.01104]
[1768166028632,0.09384,90714.0,90696.0,0.10702152]
[1768166029540,0.09384,90714.0,90699.0,0.01104]
[1768166030246,0.09384,90714.0,90701.0,0.01104]
[1768166031144,0.09384,90714.0,90706.0,0.011039]
[1768166032144,0.09384,90714.0,90697.0,0.011041]
[1768166033152,0.09384,90714.0,90706.0,0.011039]
[1768166034049,0.09384,90714.0,90696.0,0.00974841]
[1768166034643,0.09384,90714.0,90708.0,0.011039]
[1768166034950,0.09384,90714.0,90699.0,0.01104]
[1768166035952,0.09384,90714.0,90696.0,0.00974841]
[1768166036550,0.09384,90714.0,90697.0,0.011041]
[1768166037649,0.09384,90714.0,90705.0,0.01104]
[1768166038049,0.09384,90714.0,90696.0,0.00974841]
[1768166039352,0.09384,90714.0,90702.0,0.01104]
[1768166039552,0.09384,90714.0,90703.0,0.01104]
[1768166039752,0.10441735,90714.0,90703.0,0.01104]
[1768166040056,0.10441735,90714.0,90702.0,0.01104]
[1768166040556,0.10441735,90714.0,90692.0,0.09727311]
[1768166041557,0.1520242,90710.0,90692.0,0.09727311]
[1768166041748,0.1520242,90710.0,90700.0,0.01104]
[1768166042153,0.01057735,90709.0,90698.0,0.01104]
[1768166042356,0.01057735,90709.0,90692.0,0.09384]
[1768166042850,0.1520242,90710.0,90702.0,0.01104]
[1768166046354,0.1520242,90710.0,90694.0,0.011041]
[1768166046559,0.1520242,90710.0,90694.0,0.006081]
[1768166046863,0.1520242,90710.0,90702.0,0.01104]
[1768166047063,0.1520242,90710.0,90703.0,0.01104]
[1768166047258,0.1520242,90713.0,90703.0,0.01104]
[1768166049459,0.09384,90714.0,90703.0,0.01104]
[1768166049653,0.1520242,90713.0,90703.0,0.01104]
[1768166052569,0.09384,90714.0,90703.0,0.01104]
[1768166052768,0.1520242,90713.0,90703.0,0.01104]
[1768166052966,0.1520242,90713.0,90698.0,0.011041]
[1768166053162,0.1520242,90710.0,90693.0,0.00974841]
[1768166053674,0.1520242,90710.0,90692.0,0.08658841]
[1768166054565,0.1520242,90710.0,90699.0,0.01104]
[1768166055466,0.10348747,90714.0,90701.0,0.01104]
[1768166055667,0.1520242,90710.0,90701.0,0.01104]
[1768166056068,0.10348747,90714.0,90701.0,0.01104]
[1768166056269,0.1520242,90711.0,90701.0,0.01104]
[1768166057875,0.1520242,90711.0,90702.0,0.01104]
[1768166060576,0.1520242,90711.0,90692.0,0.08658841]
[1768166061376,0.1520242,90711.0,90702.0,0.01104]
[1768166061876,0.1520242,90712.0,90703.0,0.01104]
[1768166064974,0.00964747,90714.0,90694.0,0.011041]
[1768166065176,0.00964747,90714.0,90700.0,0.01104]
[1768166066377,0.00964747,90714.0,90701.0,0.01104]
[1768166066577,0.00964747,90714.0,90702.0,0.01104]
[1768166067176,0.00964747,90714.0,90703.0,0.01104]
[1768166067680,0.00964747,90714.0,90692.0,0.08658841]
[1768166068175,0.1520242,90710.0,90692.0,0.09598379]
[1768166068378,0.1520242,90710.0,90703.0,0.01104]
[1768166068578,0.1520242,90713.0,90703.0,0.01104]
[1768166073285,0.1520242,90713.0,90700.0,0.01104]
[1768166073471,0.1520242,90710.0,90700.0,0.01104]
[1768166074977,0.1520242,90710.0,90699.0,0.01104]
[1768166075183,0.1520242,90710.0,90693.0,0.011041]
[1768166075575,0.1520242,90710.0,90702.0,0.01104]
[1768166075983,0.1520242,90710.0,90704.0,0.01104]
[1768166077485,0.16167167,90714.0,90704.0,0.01104]
[1768166079391,0.00964747,90714.0,90704.0,0.01104]
[1768166080494,0.00964747,90714.0,90706.0,0.011039]
[1768166081976,0.00964747,90714.0,90697.0,0.00908]
[1768166083188,0.00964747,90714.0,90704.0,0.01104]
[1768166086694,0.00964747,90714.0,90702.0,0.01104]
[1768166088392,0.00964747,90714.0,90703.0,0.01104]
[1768166088989,0.00964747,90714.0,90695.0,0.00963405]
[1768166089586,0.00964747,90714.0,90706.0,0.011039]
[1768166092589,0.09384,90716.0,90706.0,0.011039]
[1768166093695,0.09384,90716.0,90696.0,0.011041]
[1768166095391,0.09384,90716.0,90703.0,0.01104]
[1768166096092,0.09384,90716.0,90696.0,0.007081]
[1768166097396,0.09384,90716.0,90702.0,0.01104]
[1768166098795,0.09384,90716.0,90703.0,0.01104]
[1768166099684,0.09384,90716.0,90697.0,0.011041]
[1768166099889,0.09384,90716.0,90706.0,0.011039]
[1768166101488,0.09384,90716.0,90697.0,0.011041]
[1768166102291,0.10291063,90716.0,90695.0,0.00963405]
[1768166102492,0.00907063,90703.0,90688.0,0.0892019]
[1768166102695,0.0938,90702.0,90687.0,0.011042]
[1768166102993,0.01104,90701.0,90688.0,0.011042]
[1768166103602,0.0938,90702.0,90681.0,0.011043]
[1768166103796,0.0938,90702.0,90682.0,0.00930356]
[1768166103991,0.10484,90702.0,90682.0,0.00930356]
[1768166105198,0.0938,90702.0,90687.0,0.00985149]
[1768166105396,0.0938,90702.0,90695.0,0.011041]
[1768166105597,0.0938,90702.0,90694.0,0.011041]
[1768166108104,0.0938,90702.0,90692.0,0.00289249]
[1768166108608,0.0938,90702.0,90693.0,0.011041]
[1768166108909,0.0938,90702.0,90695.0,0.011041]
[1768166109504,0.0938,90702.0,90694.0,0.011041]
[1768166109999,0.00657507,90714.0,90696.0,0.011041]
[1768166110205,0.09384,90708.0,90696.0,0.011041]
[1768166115222,0.09384,90708.0,90692.0,0.00193349]
[1768166115425,0.09384,90708.0,90695.0,0.011041]
[1768166115624,0.09384,90708.0,90694.0,0.011041]
[1768166115822,0.09384,90708.0,90686.0,0.09579573]
[1768166117221,0.09384,90708.0,90692.0,0.011041]
[1768166117628,0.104879,90708.0,90687.0,0.00941997]
[1768166117827,0.09384,90708.0,90693.0,0.011041]
[1768166118627,0.09384,90708.0,90694.0,0.011041]
[1768166118927,0.09384,90708.0,90696.0,0.011041]
[1768166120128,0.09384,90708.0,90697.0,0.011041]
[1768166121528,0.09384,90708.0,90699.0,0.01104]
[1768166122531,0.09384,90715.0,90701.0,0.01104]
[1768166122725,0.09384,90715.0,90699.0,0.00941997]
[1768166123225,0.09384,90715.0,90694.0,0.0932157]
[1768166123827,0.09384,90715.0,90699.0,0.01104]
[1768166124032,0.09384,90715.0,90694.0,0.0932157]
[1768166124331,0.09384,90715.0,90700.0,0.01104]
[1768166124921,0.09384,90715.0,90694.0,0.0932157]
[1768166125825,0.09384,90715.0,90702.0,0.01104]
[1768166126225,0.09384,90715.0,90694.0,0.1042567]
[1768166126425,0.09384,90715.0,90705.0,0.01104]
[1768166127732,0.09384,90715.0,90696.0,0.011041]
[1768166128334,0.09384,90715.0,90706.0,0.01104]
[1768166128530,0.09384,90715.0,90696.0,0.011041]
[1768166128733,0.10313708,90715.0,90708.0,0.011039]
[1768166128927,0.10313708,90715.0,90705.0,0.01104]
[1768166129128,0.10313708,90715.0,90708.0,0.011039]
[1768166129634,0.00929708,90714.0,90710.0,0.011039]
[1768166129934,0.00929708,90714.0,90709.0,0.011039]
[1768166130120,0.00929708,90714.0,90700.0,0.01104]
[1768166131129,0.74788,90728.0,90701.0,0.01104]
[1768166131330,0.09384,90727.0,90725.0,0.011037]
[1768166131737,0.09384,90731.0,90724.0,0.011037]
[1768166131937,0.09384,90731.0,90727.0,0.011037]
[1768166132230,0.09384,90731.0,90725.0,0.011037]
[1768166132430,0.09384,90731.0,90721.0,0.011038]
[1768166132624,0.09384,90731.0,90723.0,0.011037]
[1768166133625,0.09384,90731.0,90723.0,0.02399576]
[1768166134035,0.09384,90731.0,90723.0,0.01295876]
[1768166134238,0.09384,90731.0,90717.0,0.011038]
[1768166134436,0.09384,90731.0,90719.0,0.011038]
[1768166134629,0.09384,90731.0,90719.0,0.02358527]
[1768166135847,0.11474791,90731.0,90715.0,0.011038]
[1768166136142,0.11474791,90731.0,90717.0,0.011038]
[1768166136335,0.11474791,90731.0,90717.0,0.02369431]
[1768166137240,0.11474791,90731.0,90717.0,0.01169431]
[1768166137430,0.11474791,90731.0,90717.0,0.011038]
[1768166137929,0.11474791,90731.0,90719.0,0.011038]
[1768166138341,0.11474791,90731.0,90716.0,0.011038]
[1768166138542,0.11474791,90731.0,90718.0,0.011038]
[1768166138732,0.011037,90729.0,90710.0,0.00941997]